fUST/lending_fUST_20241018
["ID","MTS","AMOUNT","RATE_DAILY","PERIOD"]
[340411069,1729221040455,-767.364298,0.00012718,2]
[340411070,1729221040465,-767.364298,0.00012721,2]
[340411071,1729221040475,-767.364298,0.00012724,2]
[340411072,1729221040485,-767.364298,0.00012728,2]
[340411073,1729221040494,-767.364298,0.00012731,2]
[340411074,1729221040506,-767.364298,0.00012735,2]
[340411075,1729221040516,-767.364298,0.00012738,2]
[340411076,1729221040525,-767.364298,0.00012741,2]
[340411077,1729221040535,-767.364298,0.00012745,2]
[340411078,1729221040545,-767.364298,0.00012748,2]
[340411079,1729221040554,-767.364298,0.00012751,2]
[340411080,1729221040564,-15410.41833963,0.00013,2]
[340411081,1729221040574,-8886.86957974,0.00013506,2]
[340411082,1729221040584,-29579.7714802,0.00013551,2]
[340411083,1729221040594,-15578.8543114,0.00013551,2]
[340411084,1729221040604,-36098.62646566,0.0001356,2]
[340411085,1729221040614,-279.094193,0.0001356,2]
[340411086,1729221040625,-279.094193,0.0001356,2]
[340411087,1729221040636,-1094.75774,0.0001356,2]
[340411088,1729221040646,-1094.75774,0.0001356,2]
[340411089,1729221040657,-151.0,0.0001356,2]
[340411090,1729221040668,-14789.8857401,0.00013561,2]
[340411091,1729221040677,-7789.4271557,0.00013561,2]
[340411092,1729221040686,-137450.87423025,0.00013561,2]
[340411093,1729221040697,-10054.9698288,0.00013561,2]
[340411094,1729221040706,-279.094193,0.00013561,2]
[340411095,1729221040716,-279.094193,0.00013561,2]
[340411096,1729221040728,-279.094193,0.00013561,2]
[340411097,1729221040739,-279.094193,0.00013561,2]
[340411098,1729221040752,-1094.75774,0.00013561,2]
[340411099,1729221040762,-1094.75774,0.00013561,2]
[340411100,1729221040772,-1094.75774,0.00013561,2]
[340411101,1729221040782,-1094.75774,0.00013561,2]
[340411102,1729221040791,-151.0,0.00013561,2]
[340411103,1729221040801,-500.62513503,0.00013571,2]
[340411104,1729221040811,-279.094193,0.00013571,2]
[340411105,1729221040820,-279.094193,0.00013571,2]
[340411106,1729221040830,-1094.75774,0.00013571,2]
[340411107,1729221040840,-1094.75774,0.00013571,2]
[340411108,1729221040849,-150.617,0.0001358,2]
[340411109,1729221040859,-527.0,0.0001358,2]
[340411110,1729221040869,-1811.753,0.0001358,2]
[340411111,1729221040879,-1162.828,0.0001358,2]
[340411112,1729221040889,-795.10132469,0.00013598,2]
[340411113,1729221040899,-500.0,0.00013673,2]
[340411114,1729221040909,-471.23104083,0.00013673,2]
[340411115,1729221040918,-408.73641644,0.00013673,2]
[340411116,1729221040928,-244.64695121,0.00013673,2]
[340411117,1729221040938,-500.0,0.00013673,2]
[340411118,1729221040947,-500.0,0.00013673,2]
[340411119,1729221040958,-500.0,0.00013673,2]
[340411120,1729221040967,-500.0,0.00013673,2]
[340411121,1729221040976,-500.47477021,0.00013673,2]
[340411122,1729221040986,-500.0,0.00013673,2]
[340411123,1729221040996,-507.15685202,0.00013673,2]
[340411124,1729221041009,-535.042366,0.00013673,2]
[340411125,1729221041019,-500.0,0.00013673,2]
[340411126,1729221041029,-504.44465006,0.00013673,2]
[340411127,1729221041038,-500.0,0.00013673,2]
[340411128,1729221041048,-500.0,0.00013673,2]
[340411129,1729221041057,-500.0,0.00013673,2]
[340411130,1729221041067,-500.0,0.00013673,2]
[340411131,1729221041077,-637.00691843,0.00013673,2]
[340411132,1729221041387,-500.0,0.00013673,2]
[340411133,1729221041396,-500.0,0.00013673,2]
[340411134,1729221041407,-500.0,0.00013673,2]
[340411135,1729221041417,-254.08200778,0.00013673,2]
[340411136,1729221041426,-202.27814598,0.00013673,2]
[340411137,1729221041436,-500.0,0.00013673,2]
[340411138,1729221041446,-500.0,0.00013673,2]
[340411139,1729221041455,-574.0585771,0.00013673,2]
[340411140,1729221041465,-501.3102566,0.00013673,2]
[340411141,1729221041475,-315.573485,0.00013673,2]
[340411142,1729221041485,-315.573485,0.00013673,2]
[340411143,1729221041494,-396.315175,0.00013673,2]
[340411144,1729221041507,-396.315175,0.00013673,2]
[340411145,1729221041517,-279.094193,0.00013673,2]
[340411146,1729221041527,-279.094193,0.00013673,2]
[340411147,1729221041536,-1094.75774,0.00013673,2]
[340411148,1729221041546,-1094.75774,0.00013673,2]
[340411149,1729221041556,-153.849392,0.00013673,2]
[340411150,1729221041566,-14789.8857401,0.00013677,2]
[340411151,1729221041575,-7789.4271557,0.00013677,2]
[340411152,1729221041584,-279.094193,0.00013677,2]
[340411153,1729221041594,-279.094193,0.00013677,2]
[340411154,1729221041603,-1094.75774,0.00013677,2]
[340411155,1729221041613,-1094.75774,0.00013677,2]
[340411156,1729221041623,-14789.8857401,0.00013678,2]
[340411157,1729221041633,-7789.4271557,0.00013678,2]
[340411158,1729221041643,-279.094193,0.00013678,2]
[340411159,1729221041653,-279.094193,0.00013678,2]
[340411160,1729221041662,-279.094193,0.00013678,2]
[340411161,1729221041672,-279.094193,0.00013678,2]
[340411162,1729221041681,-279.094193,0.00013678,2]
[340411163,1729221041691,-279.094193,0.00013678,2]
[340411164,1729221041699,-1094.75774,0.00013678,2]
[340411165,1729221041709,-1094.75774,0.00013678,2]
[340411166,1729221041719,-1094.75774,0.00013678,2]
[340411167,1729221041729,-1094.75774,0.00013678,2]
[340411168,1729221041738,-1094.75774,0.00013678,2]
[340411169,1729221041749,-1094.75774,0.00013678,2]
[340411170,1729221041762,-59159.5429604,0.00013678,2]
[340411171,1729221041772,-31157.7086228,0.00013678,2]
[340411172,1729221041782,-14789.8857401,0.00013686,2]
[340411173,1729221041791,-7789.4271557,0.00013686,2]
[340411174,1729221041801,-279.094193,0.00013686,2]
[340411175,1729221041810,-279.094195,0.00013686,2]
[340411176,1729221041819,-1094.75774,0.00013686,2]
[340411177,1729221041830,-1094.757738,0.00013686,2]
[340411178,1729221041840,-14789.8857401,0.00013687,2]
[340411179,1729221041850,-7789.4271557,0.00013687,2]
[340411180,1729221041859,-151.0,0.00013687,2]
[340411181,1729221041869,-151.0,0.00013687,2]
[340411182,1729221041879,-151.0,0.00013687,2]
[340411183,1729221041889,-151.0,0.00013687,2]
[340411184,1729221041898,-151.0,0.00013687,2]
[340411185,1729221041908,-151.0,0.00013687,2]
[340411186,1729221041917,-1478.57767,0.00013687,2]
[340411187,1729221041926,-1478.57767,0.00013687,2]
[340411188,1729221041936,-1478.57767,0.00013687,2]
[340411189,1729221041946,-1478.57767,0.00013687,2]
[340411190,1729221041956,-151.0,0.00013687,2]
[340411191,1729221041968,-151.0,0.00013687,2]
[340411192,1729221041978,-151.207621,0.00013687,2]
[340411193,1729221041989,-201.902087,0.00013687,2]
[340411194,1729221042003,-201.902087,0.00013687,2]
[340411195,1729221042014,-201.902087,0.00013687,2]
[340411196,1729221042024,-201.902087,0.00013687,2]
[340411197,1729221042034,-885.475935,0.00013687,2]
[340411198,1729221042043,-885.475935,0.00013687,2]
[340411199,1729221042052,-151.0,0.00013687,2]
[340411200,1729221042062,-167.947046,0.00013687,2]
[340411201,1729221042072,-885.475935,0.00013687,2]
[340411202,1729221042082,-885.475935,0.00013687,2]
[340411203,1729221042091,-151.0,0.00013687,2]
[340411204,1729221042102,-151.0,0.00013687,2]
[340411205,1729221042112,-225.53455,0.00013687,2]
[340411206,1729221042122,-225.53455,0.00013687,2]
[340411207,1729221042132,-225.53455,0.00013687,2]
[340411208,1729221042142,-225.53455,0.00013687,2]
[340411209,1729221042151,-151.0,0.00013687,2]
[340411210,1729221042161,-151.0,0.00013687,2]
[340411211,1729221042170,-2396.045284,0.00013687,2]
[340411212,1729221042180,-2396.045284,0.00013687,2]
[340411213,1729221042189,-151.0,0.00013687,2]
[340411214,1729221042198,-2396.045284,0.00013687,2]
[340411215,1729221042208,-2396.045284,0.00013687,2]
[340411216,1729221042218,-1532.439829,0.00013687,2]
[340411217,1729221042228,-1532.439829,0.00013687,2]
[340411218,1729221042239,-10000.0,0.00013687,2]
[340411219,1729221042251,-10000.0,0.00013687,2]
[340411220,1729221042260,-1532.439829,0.00013687,2]
[340411221,1729221042273,-1532.439829,0.00013687,2]
[340411222,1729221042283,-2692.536648,0.00013687,2]
[340411224,1729221042293,-2692.536648,0.00013687,2]
[340411226,1729221042303,-10000.0,0.00013687,2]
[340411228,1729221042313,-10000.0,0.00013687,2]
[340411229,1729221042322,-2692.536648,0.00013687,2]
[340411231,1729221042332,-2692.536648,0.00013687,2]
[340411232,1729221042344,-10000.0,0.00013687,2]
[340411233,1729221042353,-10000.0,0.00013687,2]
[340411234,1729221042363,-10000.0,0.00013687,2]
[340411235,1729221042372,-10000.0,0.00013687,2]
[340411236,1729221042382,-10000.0,0.00013687,2]
[340411237,1729221042392,-10000.0,0.00013687,2]
[340411238,1729221042402,-3827.041588,0.00013687,2]
[340411239,1729221042413,-3827.041588,0.00013687,2]
[340411240,1729221042423,-3827.041588,0.00013687,2]
[340411241,1729221042434,-3827.041588,0.00013687,2]
[340411242,1729221042444,-315.573485,0.00013687,2]
[340411243,1729221042453,-315.573485,0.00013687,2]
[340411244,1729221042463,-315.573485,0.00013687,2]
[340411245,1729221042472,-315.573485,0.00013687,2]
[340411246,1729221042484,-315.573485,0.00013687,2]
[340411247,1729221042494,-315.573485,0.00013687,2]
[340411248,1729221042507,-396.315175,0.00013687,2]
[340411249,1729221042516,-396.315175,0.00013687,2]
[340411250,1729221042524,-396.315175,0.00013687,2]
[340411251,1729221042533,-396.315175,0.00013687,2]
[340411252,1729221042543,-396.315175,0.00013687,2]
[340411253,1729221042553,-396.315175,0.00013687,2]
[340411254,1729221042563,-153.849392,0.00013687,2]
[340411255,1729221042573,-153.849392,0.00013687,2]
[340411256,1729221042583,-153.849392,0.00013687,2]
[340411257,1729221042594,-193.67959471,0.00013688,2]
[340411258,1729221042603,-181.672,0.00013688,2]
[340411259,1729221042614,-151.0,0.00013688,2]
[340411260,1729221042623,-151.0,0.00013688,2]
[340411261,1729221042633,-151.0,0.00013688,2]
[340411262,1729221042643,-151.0,0.00013688,2]
[340411263,1729221042653,-151.0,0.00013688,2]
[340411264,1729221042663,-229.693475,0.00013688,2]
[340411265,1729221042672,-1478.57767,0.00013688,2]
[340411266,1729221042681,-1478.57767,0.00013688,2]
[340411267,1729221042691,-151.0,0.00013688,2]
[340411268,1729221042701,-151.0,0.00013688,2]
[340411269,1729221042710,-201.902087,0.00013688,2]
[340411270,1729221042720,-201.902087,0.00013688,2]
[340411271,1729221042730,-201.902087,0.00013688,2]
[340411272,1729221042740,-201.902087,0.00013688,2]
[340411273,1729221042752,-885.475935,0.00013688,2]
[340411274,1729221042763,-885.475935,0.00013688,2]
[340411275,1729221042772,-885.475935,0.00013688,2]
[340411276,1729221042781,-885.475935,0.00013688,2]
[340411277,1729221042790,-151.0,0.00013688,2]
[340411278,1729221042800,-151.0,0.00013688,2]
[340411279,1729221042809,-225.53455,0.00013688,2]
[340411280,1729221042819,-225.53455,0.00013688,2]
[340411281,1729221042829,-225.53455,0.00013688,2]
[340411282,1729221042839,-225.53455,0.00013688,2]
[340411283,1729221042849,-151.0,0.00013688,2]
[340411284,1729221042860,-151.0,0.00013688,2]
[340411285,1729221042869,-2396.045284,0.00013688,2]
[340411286,1729221042879,-2396.045284,0.00013688,2]
[340411287,1729221042888,-2396.045284,0.00013688,2]
[340411288,1729221042897,-2396.045284,0.00013688,2]
[340411289,1729221042906,-1532.439829,0.00013688,2]
[340411290,1729221042916,-1532.439829,0.00013688,2]
[340411291,1729221042926,-1532.439829,0.00013688,2]
[340411292,1729221042936,-10000.0,0.00013688,2]
[340411293,1729221042945,-10000.0,0.00013688,2]
[340411294,1729221042956,-1532.439829,0.00013688,2]
[340411295,1729221042965,-1532.439829,0.00013688,2]
[340411296,1729221042975,-2692.536648,0.00013688,2]
[340411297,1729221042985,-2692.536648,0.00013688,2]
[340411298,1729221042995,-10000.0,0.00013688,2]
[340411299,1729221043006,-1532.439829,0.00013688,2]
[340411300,1729221043016,-10000.0,0.00013688,2]
[340411301,1729221043026,-2692.536648,0.00013688,2]
[340411302,1729221043035,-2692.536648,0.00013688,2]
[340411303,1729221043045,-9877.2709734,0.00013688,2]
[340411304,1729221043060,-122.7290266,0.00013688,2]
[340411305,1729221043070,-127.2709734,0.00013688,2]
[340411306,1729221043178,-62.25197,0.00013688,2]
[340411307,1729221043190,-9810.4770566,0.00013688,2]
[340411308,1729221043200,-10000.0,0.00013688,2]
[340411309,1729221043209,-10000.0,0.00013688,2]
[340411310,1729221043219,-10000.0,0.00013688,2]
[340411311,1729221043229,-10000.0,0.00013688,2]
[340411312,1729221043239,-3827.041588,0.00013688,2]
[340411313,1729221043252,-3827.041588,0.00013688,2]
[340411314,1729221043262,-3827.041588,0.00013688,2]
[340411315,1729221043274,-315.573485,0.00013688,2]
[340411316,1729221043284,-315.573485,0.00013688,2]
[340411317,1729221043294,-315.573485,0.00013688,2]
[340411318,1729221043303,-315.573485,0.00013688,2]
[340411319,1729221043312,-315.573485,0.00013688,2]
[340411320,1729221043322,-315.573485,0.00013688,2]
[340411321,1729221043331,-396.315175,0.00013688,2]
[340411322,1729221043340,-396.315175,0.00013688,2]
[340411323,1729221043349,-396.315175,0.00013688,2]
[340411324,1729221043358,-396.315175,0.00013688,2]
[340411325,1729221043367,-396.315175,0.00013688,2]
[340411326,1729221043375,-396.315175,0.00013688,2]
[340411327,1729221043384,-2427.2041004,0.00013688,2]
[340412128,1729221750159,1052.61815784,5e-05,14]
[340412219,1729222238480,-500.0,0.00010782,2]
[340412221,1729222238490,-150.0,0.0001141,2]
[340412223,1729222238500,-3453.7920198,0.00011691,2]
[340412226,1729222238510,-582.5573121,0.00011792,2]
[340412227,1729222238519,-201.98842544,0.00011811,2]
[340412230,1729222238530,-300.0,0.00011839,2]
[340412232,1729222238540,-300.0,0.00011839,2]
[340412234,1729222238550,-8504.5386382,0.0001184,2]
[340412235,1729222238559,-3000.0,0.00011911,2]
[340412237,1729222238568,-162.381904,0.00012301,2]
[340412239,1729222238578,-162.381904,0.00012408,2]
[340412241,1729222238587,-162.381904,0.00012515,2]
[340412244,1729222238598,-162.381904,0.00012621,2]
[340412246,1729222238607,-162.381904,0.00012728,2]
[340412247,1729222238616,-162.381904,0.00012835,2]
[340412249,1729222238626,-162.381904,0.00012942,2]
[340412251,1729222238635,-420.0,0.00012998,2]
[340412253,1729222238645,-420.0,0.00013022,2]
[340412255,1729222238655,-150.59993605,0.00013377,2]
[340412257,1729222238664,-8886.86957974,0.00013383,2]
[340412259,1729222238674,-153.0,0.00013425,2]
[340412261,1729222238684,-247.59554572,0.0001345,2]
[340412264,1729222238695,-419.65947247,0.0001345,2]
[340412266,1729222238709,-629.95857495,0.0001345,2]
[340412268,1729222238719,-379.54230339,0.00013522,2]
[340412350,1729222240252,-120.45769661,0.00013522,2]
[340412351,1729222240262,-10054.9698288,0.00013549,2]
[340412352,1729222240271,-756.89400299,0.00013549,2]
[340412353,1729222240282,-500.62513503,0.0001355,2]
[340412354,1729222240294,-151.0,0.00013551,2]
[340412355,1729222240303,-636.26148399,0.00013558,2]
[340412356,1729222240313,-151.0,0.0001356,2]
[340412357,1729222240322,-151.0,0.0001356,2]
[340412358,1729222240331,-151.0,0.0001356,2]
[340412359,1729222240342,-350.119053,0.0001356,2]
[340412360,1729222240351,-350.119053,0.0001356,2]
[340412361,1729222240361,-3639.42316577,0.00013561,2]
[340412362,1729222240372,-151.0,0.00013561,2]
[340412363,1729222240381,-151.0,0.00013561,2]
[340412364,1729222240390,-151.0,0.00013561,2]
[340412365,1729222240400,-151.0,0.00013561,2]
[340412366,1729222240410,-151.0,0.00013561,2]
[340412367,1729222240420,-151.0,0.00013561,2]
[340412368,1729222240429,-350.119053,0.00013561,2]
[340412369,1729222240438,-350.119053,0.00013561,2]
[340412370,1729222240447,-350.119053,0.00013561,2]
[340412371,1729222240457,-350.119053,0.00013561,2]
[340412372,1729222240466,-636.26148397,0.00013562,2]
[340412373,1729222240475,-636.26148397,0.00013565,2]
[340412374,1729222240484,-636.26148397,0.00013569,2]
[340412375,1729222240493,-151.0,0.00013571,2]
[340412376,1729222240502,-151.0,0.00013571,2]
[340412377,1729222240512,-350.119053,0.00013571,2]
[340412378,1729222240521,-350.119053,0.00013571,2]
[340412379,1729222240531,-636.26148397,0.00013572,2]
[340412380,1729222240540,-795.10132469,0.00013586,2]
[340412381,1729222240549,-14224.0128801,0.00013648,2]
[340412382,1729222240559,-14224.0128801,0.00013656,2]
[340412383,1729222240568,-14224.0128801,0.00013657,2]
[340412384,1729222240577,-28448.0257602,0.00013658,2]
[340412385,1729222240586,-28448.0257602,0.00013667,2]
[340412386,1729222240596,-249.613713,0.00013668,2]
[340412387,1729222240605,-232.546328,0.00013668,2]
[340412388,1729222240614,-232.546328,0.00013668,2]
[340412389,1729222240623,-232.546328,0.00013668,2]
[340412390,1729222240632,-232.546328,0.00013668,2]
[340412391,1729222240641,-214.247306,0.00013668,2]
[340412392,1729222240651,-214.247306,0.00013668,2]
[340412393,1729222240660,-214.247306,0.00013668,2]
[340412394,1729222240669,-214.247306,0.00013668,2]
[340412395,1729222240678,-551.548296,0.00013668,2]
[340412396,1729222240688,-551.548296,0.00013668,2]
[340412397,1729222240697,-551.548296,0.00013668,2]
[340412398,1729222240707,-551.548296,0.00013668,2]
[340412399,1729222240716,-151.0,0.00013668,2]
[340412400,1729222240725,-151.0,0.00013668,2]
[340412401,1729222240734,-151.0,0.00013668,2]
[340412402,1729222240743,-151.0,0.00013668,2]
[340412403,1729222240753,-151.0,0.00013668,2]
[340412404,1729222240763,-151.0,0.00013668,2]
[340412405,1729222240772,-766.330418,0.00013668,2]
[340412406,1729222240782,-766.330418,0.00013668,2]
[340412407,1729222240791,-151.0,0.00013668,2]
[340412408,1729222240800,-151.0,0.00013668,2]
[340412409,1729222240809,-766.330418,0.00013668,2]
[340412410,1729222240818,-766.330418,0.00013668,2]
[340412411,1729222240828,-151.0,0.00013668,2]
[340412412,1729222240837,-151.0,0.00013668,2]
[340412413,1729222240846,-151.0,0.00013668,2]
[340412414,1729222240856,-151.0,0.00013668,2]
[340412415,1729222240865,-201.902087,0.00013668,2]
[340412416,1729222240875,-201.902087,0.00013668,2]
[340412417,1729222240884,-201.902087,0.00013668,2]
[340412418,1729222240893,-201.902087,0.00013668,2]
[340412419,1729222240904,-151.0,0.00013668,2]
[340412420,1729222240915,-151.0,0.00013668,2]
[340412421,1729222240925,-151.0,0.00013668,2]
[340412422,1729222240934,-151.0,0.00013668,2]
[340412423,1729222240944,-1422.346894,0.00013668,2]
[340412424,1729222240954,-1422.346894,0.00013668,2]
[340412425,1729222240963,-151.0,0.00013668,2]
[340412426,1729222240972,-151.0,0.00013668,2]
[340412427,1729222240981,-1422.346894,0.00013668,2]
[340412428,1729222240990,-1422.346894,0.00013668,2]
[340412429,1729222241000,-151.0,0.00013668,2]
[340412430,1729222241010,-151.0,0.00013668,2]
[340412431,1729222241021,-885.475935,0.00013668,2]
[340412432,1729222241031,-885.475935,0.00013668,2]
[340412433,1729222241040,-151.207621,0.00013668,2]
[340412434,1729222241049,-885.475935,0.00013668,2]
[340412435,1729222241058,-885.475935,0.00013668,2]
[340412436,1729222241067,-2692.536648,0.00013668,2]
[340412437,1729222241076,-2692.536648,0.00013668,2]
[340412438,1729222241085,-2692.536648,0.00013668,2]
[340412439,1729222241095,-2692.536648,0.00013668,2]
[340412440,1729222241104,-1532.439829,0.00013668,2]
[340412441,1729222241113,-1532.439829,0.00013668,2]
[340412442,1729222241123,-1532.439829,0.00013668,2]
[340412443,1729222241132,-1532.439829,0.00013668,2]
[340412444,1729222241141,-10000.0,0.00013668,2]
[340412445,1729222241150,-10000.0,0.00013668,2]
[340412446,1729222241159,-56896.0515204,0.00013668,2]
[340412447,1729222241169,-500.78222995,0.00013673,2]
[340412448,1729222241178,-500.0,0.00013673,2]
[340412449,1729222241187,-500.0,0.00013673,2]
[340412450,1729222241196,-535.042366,0.00013673,2]
[340412451,1729222241205,-500.0,0.00013673,2]
[340412452,1729222241215,-500.0,0.00013673,2]
[340412453,1729222241224,-500.0,0.00013673,2]
[340412454,1729222241233,-500.0,0.00013673,2]
[340412455,1729222241242,-504.65945447,0.00013673,2]
[340412456,1729222241252,-507.15685202,0.00013673,2]
[340412457,1729222241261,-219.61820741,0.00013673,2]
[340412458,1729222241270,-500.0,0.00013673,2]
[340412459,1729222241279,-500.0,0.00013673,2]
[340412460,1729222241289,-500.0,0.00013673,2]
[340412461,1729222241302,-504.44465006,0.00013673,2]
[340412462,1729222241311,-500.0,0.00013673,2]
[340412463,1729222241320,-502.19694948,0.00013673,2]
[340412464,1729222241330,-500.0,0.00013673,2]
[340412465,1729222241339,-500.0,0.00013673,2]
[340412466,1729222241347,-254.08200778,0.00013673,2]
[340412467,1729222241356,-500.0,0.00013673,2]
[340412468,1729222241366,-637.00691843,0.00013673,2]
[340412469,1729222241375,-574.0585771,0.00013673,2]
[340412470,1729222241385,-501.3102566,0.00013673,2]
[340412471,1729222241394,-500.0,0.00013673,2]
[340412472,1729222241403,-500.0,0.00013673,2]
[340412473,1729222241412,-500.0,0.00013673,2]
[340412474,1729222241421,-500.0,0.00013673,2]
[340412475,1729222241430,-500.0,0.00013673,2]
[340412476,1729222241440,-151.0,0.00013673,2]
[340412477,1729222241449,-151.0,0.00013673,2]
[340412478,1729222241458,-151.0,0.00013673,2]
[340412479,1729222241467,-350.119053,0.00013673,2]
[340412480,1729222241476,-350.119053,0.00013673,2]
[340412481,1729222241485,-232.546328,0.00013676,2]
[340412482,1729222241496,-232.546328,0.00013676,2]
[340412483,1729222241506,-214.247306,0.00013676,2]
[340412484,1729222241515,-214.247306,0.00013676,2]
[340412485,1729222241524,-551.548296,0.00013676,2]
[340412486,1729222241533,-551.548296,0.00013676,2]
[340412487,1729222241542,-151.0,0.00013676,2]
[340412488,1729222241552,-151.0,0.00013676,2]
[340412489,1729222241561,-151.0,0.00013676,2]
[340412490,1729222241571,-766.330418,0.00013676,2]
[340412491,1729222241580,-188.340642,0.00013676,2]
[340412492,1729222241590,-766.330418,0.00013676,2]
[340412493,1729222241600,-151.0,0.00013676,2]
[340412494,1729222241609,-195.666722,0.00013676,2]
[340412495,1729222241620,-201.902087,0.00013676,2]
[340412496,1729222241629,-201.902087,0.00013676,2]
[340412497,1729222241638,-151.0,0.00013676,2]
[340412498,1729222241648,-151.0,0.00013676,2]
[340412499,1729222241658,-1422.346894,0.00013676,2]
[340412500,1729222241667,-151.0,0.00013676,2]
[340412501,1729222241679,-1422.346894,0.00013676,2]
[340412502,1729222241689,-151.0,0.00013676,2]
[340412503,1729222241699,-885.475935,0.00013676,2]
[340412504,1729222241710,-885.475935,0.00013676,2]
[340412505,1729222241720,-2692.536648,0.00013676,2]
[340412506,1729222241730,-2692.536648,0.00013676,2]
[340412507,1729222241740,-1532.439829,0.00013676,2]
[340412508,1729222241751,-1532.439829,0.00013676,2]
[340412509,1729222241760,-10000.0,0.00013676,2]
[340412510,1729222241770,-42672.0386403,0.00013676,2]
[340412511,1729222241779,-151.0,0.00013677,2]
[340412512,1729222241789,-151.0,0.00013677,2]
[340412513,1729222241799,-151.0,0.00013677,2]
[340412514,1729222241809,-350.119053,0.00013677,2]
[340412515,1729222241822,-350.119053,0.00013677,2]
[340412516,1729222241835,-151.0,0.00013677,2]
[340412517,1729222241847,-151.0,0.00013677,2]
[340412518,1729222241857,-151.0,0.00013677,2]
[340412519,1729222241866,-1104.486482,0.00013677,2]
[340412520,1729222241875,-1104.486482,0.00013677,2]
[340412521,1729222241885,-227.340834,0.00013677,2]
[340412522,1729222241896,-227.340834,0.00013677,2]
[340412523,1729222241906,-151.521307,0.00013677,2]
[340412524,1729222241915,-1885.604008,0.00013677,2]
[340412525,1729222241925,-151.0,0.00013677,2]
[340412526,1729222241934,-1885.604008,0.00013677,2]
[340412527,1729222241943,-151.0,0.00013677,2]
[340412528,1729222241953,-151.0,0.00013677,2]
[340412529,1729222241962,-3386.916869,0.00013677,2]
[340412530,1729222241972,-3386.916869,0.00013677,2]
[340412531,1729222241982,-151.0,0.00013677,2]
[340412532,1729222241992,-151.0,0.00013677,2]
[340412533,1729222242004,-220.90144,0.00013677,2]
[340412534,1729222242013,-151.0,0.00013677,2]
[340412535,1729222242025,-220.90144,0.00013677,2]
[340412536,1729222242035,-151.0,0.00013677,2]
[340412537,1729222242045,-151.0,0.00013677,2]
[340412538,1729222242056,-151.0,0.00013677,2]
[340412539,1729222242066,-167.456516,0.00013677,2]
[340412540,1729222242075,-225.53455,0.00013677,2]
[340412541,1729222242085,-225.53455,0.00013677,2]
[340412542,1729222242095,-277.420623,0.00013677,2]
[340412543,1729222242105,-151.0,0.00013677,2]
[340412544,1729222242116,-277.420623,0.00013677,2]
[340412545,1729222242127,-587.9871,0.00013677,2]
[340412546,1729222242136,-151.0,0.00013677,2]
[340412547,1729222242145,-151.0,0.00013677,2]
[340412548,1729222242155,-587.9871,0.00013677,2]
[340412549,1729222242164,-151.0,0.00013677,2]
[340412550,1729222242174,-1301.439552,0.00013677,2]
[340412551,1729222242183,-1301.439552,0.00013677,2]
[340412552,1729222242192,-232.546328,0.00013677,2]
[340412553,1729222242202,-232.546328,0.00013677,2]
[340412554,1729222242211,-214.247306,0.00013677,2]
[340412555,1729222242221,-214.247306,0.00013677,2]
[340412556,1729222242230,-551.548296,0.00013677,2]
[340412557,1729222242239,-551.548296,0.00013677,2]
[340412558,1729222242248,-151.0,0.00013677,2]
[340412559,1729222242258,-151.0,0.00013677,2]
[340412560,1729222242267,-151.0,0.00013677,2]
[340412561,1729222242277,-151.0,0.00013677,2]
[340412562,1729222242288,-151.0,0.00013677,2]
[340412563,1729222242300,-151.0,0.00013677,2]
[340412564,1729222242310,-766.330418,0.00013677,2]
[340412565,1729222242319,-766.330418,0.00013677,2]
[340412566,1729222242330,-766.330418,0.00013677,2]
[340412567,1729222242340,-766.330418,0.00013677,2]
[340412568,1729222242350,-429.200689,0.00013677,2]